fUSD/lending_fUSD_20260702
["ID","MTS","AMOUNT","RATE_DAILY","PERIOD"]
[426878870,1782976561000,1431.59,0.00037086,120]
[426878879,1782976562000,1039.39453327,0.00037086,120]
[426878881,1782976562000,500.0,0.00037086,120]
[426878882,1782976562000,1431.59,0.00037086,120]
[426878883,1782976562000,476.6753411,0.00037086,120]
[426878884,1782976562000,656.67,0.00037086,120]
[426878880,1782976562000,656.67,0.00037086,120]
[426878886,1782976562000,746.44,0.00037086,120]
[426878887,1782976562000,1431.60196017,0.00037086,120]
[426878888,1782976562000,656.67,0.00037086,120]
[426878890,1782976562000,656.67,0.00037086,120]
[426878889,1782976562000,746.44,0.00037086,120]
[426878885,1782976562000,289.1457955,0.00037086,120]
[426878891,1782976563000,746.44,0.00037086,120]
[426878892,1782976563000,656.67,0.00037086,120]
[426878893,1782976563000,746.44,0.00037086,120]
[426878895,1782976563000,746.44,0.00037086,120]
[426878896,1782976563000,656.7833371,0.00037086,120]
[426878894,1782976563000,746.44,0.00037086,120]
[426878899,1782976564000,746.44,0.00037086,120]
[426878898,1782976564000,500.0,0.00037086,120]
[426878897,1782976564000,746.44,0.00037086,120]
[426878902,1782976565000,746.44,0.00037086,120]
[426878901,1782976565000,500.0,0.00037086,120]
[426878903,1782976565000,500.0,0.00037086,120]
[426878900,1782976565000,500.0,0.00037086,120]
[426878905,1782976565000,746.44,0.00037086,120]
[426878908,1782976565000,746.44,0.00037086,120]
[426878904,1782976565000,500.0,0.00037086,120]
[426878906,1782976565000,500.0,0.00037086,120]
[426878907,1782976565000,500.0,0.00037086,120]
[426878918,1782976566000,746.44,0.00037086,120]
[426878917,1782976566000,250.48996353,0.00037086,120]
[426878916,1782976566000,500.0,0.00037086,120]
[426878915,1782976566000,746.44,0.00037086,120]
[426878913,1782976566000,538.54097757,0.00037086,120]
[426878912,1782976566000,746.44,0.00037086,120]
[426878911,1782976566000,500.0,0.00037086,120]
[426878910,1782976566000,500.0,0.00037086,120]
[426878909,1782976566000,543.15485352,0.00037086,120]
[426878914,1782976566000,500.0,0.00037086,120]
[426878921,1782976567000,500.0,0.00037086,120]
[426878919,1782976567000,500.0,0.00037086,120]
[426878920,1782976567000,746.44,0.00037086,120]
[426878923,1782976567000,500.0,0.00037086,120]
[426878924,1782976567000,746.44,0.00037086,120]
[426878925,1782976567000,500.0,0.00037086,120]
[426878926,1782976567000,746.44,0.00037086,120]
[426878922,1782976567000,746.44,0.00037086,120]
[426878927,1782976568000,500.0,0.00037086,120]
[426878928,1782976568000,746.44,0.00037086,120]
[426878929,1782976568000,500.0,0.00037086,120]
[426878930,1782976568000,746.44,0.00037086,120]
[426878932,1782976568000,564.60098432,0.00037086,120]
[426878933,1782976568000,746.44,0.00037086,120]
[426878934,1782976568000,1674.86,0.00037086,120]
[426878935,1782976568000,558.52253176,0.00037086,120]
[426878931,1782976568000,500.0,0.00037086,120]
[426878936,1782976569000,746.44,0.00037086,120]
[426878937,1782976569000,416.81767103,0.00037086,120]
[426878938,1782976569000,1674.86,0.00037086,120]
[426878939,1782976569000,500.0,0.00037086,120]
[426878942,1782976569000,500.0,0.00037086,120]
[426878941,1782976569000,1674.86,0.00037086,120]
[426878940,1782976569000,746.44,0.00037086,120]
[426878945,1782976569000,500.0,0.00037086,120]
[426878944,1782976569000,1674.86,0.00037086,120]
[426878943,1782976569000,746.57137637,0.00037086,120]
[426878946,1782976570000,1674.86,0.00037086,120]
[426878947,1782976570000,154.4825217,0.00037086,120]
[426878948,1782976570000,500.0,0.00037086,120]
[426878953,1782976570000,1674.86,0.00037086,120]
[426878950,1782976570000,500.0,0.00037086,120]
[426878951,1782976570000,1674.86,0.00037086,120]
[426878952,1782976570000,500.0,0.00037086,120]
[426878949,1782976570000,1674.86,0.00037086,120]
[426878961,1782976571000,500.0,0.00037086,120]
[426878960,1782976571000,1674.86,0.00037086,120]
[426878959,1782976571000,248.9611575,0.00037086,120]
[426878958,1782976571000,500.0,0.00037086,120]
[426878957,1782976571000,1674.86,0.00037086,120]
[426878956,1782976571000,500.0,0.00037086,120]
[426878955,1782976571000,1674.86,0.00037086,120]
[426878954,1782976571000,500.0,0.00037086,120]
[426878962,1782976572000,1674.86,0.00037086,120]
[426878963,1782976572000,1131.33,0.00037086,120]
[426878967,1782976572000,1674.86,0.00037086,120]
[426878965,1782976572000,500.0,0.00037086,120]
[426878966,1782976572000,1131.33,0.00037086,120]
[426878964,1782976572000,1674.86,0.00037086,120]
[426878968,1782976573000,500.0,0.00037086,120]
[426878969,1782976573000,1131.33,0.00037086,120]
[426878970,1782976573000,1674.86,0.00037086,120]
[426878972,1782976573000,1131.33,0.00037086,120]
[426878973,1782976573000,1674.86,0.00037086,120]
[426878971,1782976573000,500.0,0.00037086,120]
[426878974,1782976573000,500.0,0.00037086,120]
[426878976,1782976573000,1674.86,0.00037086,120]
[426878977,1782976573000,175.25976505,0.00037086,120]
[426878978,1782976573000,636.83286106,0.00037086,120]
[426878979,1782976573000,500.0,0.00037086,120]
[426878980,1782976573000,1131.33,0.00037086,120]
[426878981,1782976573000,1674.86,0.00037086,120]
[426878975,1782976573000,1131.33,0.00037086,120]
[426878982,1782976574000,500.0,0.00037086,120]
[426878983,1782976574000,1131.33,0.00037086,120]
[426878984,1782976574000,1674.86,0.00037086,120]
[426878987,1782976574000,1674.86,0.00037086,120]
[426878986,1782976574000,1131.33,0.00037086,120]
[426878988,1782976574000,1131.33,0.00037086,120]
[426878985,1782976574000,619.05698491,0.00037086,120]
[426878990,1782976575000,1131.33,0.00037086,120]
[426878989,1782976575000,1674.86,0.00037086,120]
[426878991,1782976575000,1674.86,0.00037086,120]
[426878995,1782976575000,394.67916527,0.00037086,120]
[426878993,1782976575000,1674.86,0.00037086,120]
[426878994,1782976575000,1131.33,0.00037086,120]
[426878992,1782976575000,1131.33,0.00037086,120]
[426879003,1782976576000,517.64413833,0.00037086,120]
[426879002,1782976576000,244.81251542,0.00037086,120]
[426879001,1782976576000,1131.33,0.00037086,120]
[426879000,1782976576000,500.0,0.00037086,120]
[426878999,1782976576000,1131.33,0.00037086,120]
[426878998,1782976576000,500.0,0.00037086,120]
[426878997,1782976576000,1131.33,0.00037086,120]
[426878996,1782976576000,1674.9106361,0.00037086,120]
[426879004,1782976577000,1131.33,0.00037086,120]
[426879005,1782976577000,1131.33,0.00037086,120]
[426879007,1782976577000,1131.33,0.00037086,120]
[426879006,1782976577000,1131.33,0.00037086,120]
[426879008,1782976578000,1131.33,0.00037086,120]
[426879010,1782976578000,1131.33,0.00037086,120]
[426879009,1782976578000,1131.33,0.00037086,120]
[426879011,1782976579000,1131.33,0.00037086,120]
[426879012,1782976579000,500.0,0.00037086,120]
[426879015,1782976579000,500.0,0.00037086,120]
[426879014,1782976579000,500.0,0.00037086,120]
[426879013,1782976579000,1131.35640168,0.00037086,120]
[426879021,1782976580000,224.9257634,0.00037086,120]
[426879020,1782976580000,636.52644212,0.00037086,120]
[426879019,1782976580000,500.0,0.00037086,120]
[426879018,1782976580000,464.83972825,0.00037086,120]
[426879017,1782976580000,500.0,0.00037086,120]
[426879016,1782976580000,500.0,0.00037086,120]
[426879023,1782976582000,500.0,0.00037086,120]
[426879022,1782976582000,500.0,0.00037086,120]
[426879024,1782976583000,500.0,0.00037086,120]
[426879025,1782976583000,500.0,0.00037086,120]
[426879026,1782976583000,608.04212781,0.00037086,120]
[426879027,1782976583000,455.31350932,0.00037086,120]
[426879029,1782976583000,500.0,0.00037086,120]
[426879030,1782976583000,500.0,0.00037086,120]
[426879032,1782976583000,500.0,0.00037086,120]
[426879028,1782976583000,215.9560418,0.00037086,120]
[426879031,1782976583000,500.0,0.00037086,120]
[426879037,1782976584000,394.83586227,0.00037086,120]
[426879036,1782976584000,500.0,0.00037086,120]
[426879035,1782976584000,446.57021645,0.00037086,120]
[426879034,1782976584000,634.11224883,0.00037086,120]
[426879033,1782976584000,500.0,0.00037086,120]
[426879038,1782976585000,301.83250668,0.00037086,120]
[426879039,1782976585000,240.80629281,0.00037086,120]
[426879041,1782976585000,500.0,0.00037086,120]
[426879042,1782976585000,500.0,0.00037086,120]
[426879040,1782976585000,500.0,0.00037086,120]
[426879051,1782976586000,500.0,0.00037086,120]
[426879049,1782976586000,500.0,0.00037086,120]
[426879050,1782976586000,500.0,0.00037086,120]
[426879048,1782976586000,500.0,0.00037086,120]
[426879047,1782976586000,500.0,0.00037086,120]
[426879046,1782976586000,500.0,0.00037086,120]
[426879045,1782976586000,921.31315213,0.00037086,120]
[426879043,1782976586000,500.0,0.00037086,120]
[426879044,1782976586000,500.0,0.00037086,120]
[426879053,1782976587000,500.0,0.00037086,120]
[426879052,1782976587000,214.61914906,0.00037086,120]
[426879054,1782976587000,500.0,0.00037086,120]
[426879056,1782976587000,585.33748093,0.00037086,120]
[426879055,1782976587000,500.0,0.00037086,120]
[426879061,1782976588000,500.0,0.00037086,120]
[426879060,1782976588000,500.0,0.00037086,120]
[426879059,1782976588000,500.0,0.00037086,120]
[426879058,1782976588000,500.0,0.00037086,120]
[426879057,1782976588000,500.0,0.00037086,120]
[426879062,1782976589000,500.0,0.00037086,120]
[426879063,1782976589000,500.0,0.00037086,120]
[426879064,1782976589000,500.0,0.00037086,120]
[426879067,1782976589000,500.0,0.00037086,120]
[426879066,1782976589000,500.0,0.00037086,120]
[426879068,1782976589000,500.0,0.00037086,120]
[426879065,1782976589000,500.0,0.00037086,120]
[426879069,1782976590000,515.02601732,0.00037086,120]
[426879070,1782976590000,500.0,0.00037086,120]
[426879071,1782976590000,220.90615996,0.00037086,120]
[426879073,1782976590000,500.0,0.00037086,120]
[426879072,1782976590000,500.0,0.00037086,120]
[426879074,1782976590000,594.18014399,0.00037086,120]
[426879079,1782976591000,500.0,0.00037086,120]
[426879078,1782976591000,311.23605303,0.00037086,120]
[426879077,1782976591000,642.98431247,0.00037086,120]
[426879076,1782976591000,500.0,0.00037086,120]
[426879075,1782976591000,500.0,0.00037086,120]
[426879083,1782976592000,1820.63,0.00037086,120]
[426879082,1782976592000,295.27127444,0.00037086,120]
[426879081,1782976592000,500.0,0.00037086,120]
[426879080,1782976592000,500.0,0.00037086,120]
[426879084,1782976593000,500.0,0.00037086,120]
[426879085,1782976593000,493.92895726,0.00037086,120]
[426879086,1782976593000,408.90100641,0.00037086,120]
[426879087,1782976593000,500.0,0.00037086,120]
[426879089,1782976593000,500.0,0.00037086,120]
[426879091,1782976593000,500.0,0.00037086,120]
[426879090,1782976593000,280.00745561,0.00037086,120]
[426879088,1782976593000,500.0,0.00037086,120]
[426879100,1782976594000,500.0,0.00037086,120]
[426879099,1782976594000,500.0,0.00037086,120]
[426879097,1782976594000,500.0,0.00037086,120]
[426879098,1782976594000,183.33165462,0.00037086,120]
[426879096,1782976594000,350.0,0.00015059,2]
[426879095,1782976594000,500.0,0.00037086,120]
[426879094,1782976594000,500.0,0.00037086,120]
[426879093,1782976594000,500.0,0.00037086,120]
[426879092,1782976594000,500.0,0.00037086,120]
[426879102,1782976595000,500.0,0.00037086,120]
[426879101,1782976595000,350.0,0.00018523,2]
[426879104,1782976595000,153.83632457,0.00037086,120]
[426879105,1782976595000,387.20155042,0.00037086,120]
[426879103,1782976595000,500.0,0.00037086,120]
[426879106,1782976596000,558.28983858,0.00037086,120]
[426879107,1782976597000,299.88226842,0.00037086,120]
[426879111,1782976599000,448.00148551,0.00037086,120]
[426879110,1782976599000,239.02550684,0.00037086,120]
[426879109,1782976599000,638.1346737,0.00037086,120]
[426879108,1782976599000,164.39137586,0.00037086,120]
[426879112,1782976600000,593.96493387,0.00037086,120]
[426879116,1782976602000,1341.12,0.00037086,120]
[426879115,1782976602000,500.0,0.00037086,120]
[426879114,1782976602000,1341.12,0.00037086,120]
[426879113,1782976602000,1341.12,0.00037086,120]
[426879117,1782976603000,301.31222536,0.00037086,120]
[426879118,1782976603000,1341.12,0.00037086,120]
[426879119,1782976603000,1341.12,0.00037086,120]
[426879121,1782976603000,1341.12,0.00037086,120]
[426879120,1782976603000,635.07618043,0.00037086,120]
[426879126,1782976604000,1341.12,0.00037086,120]
[426879125,1782976604000,1341.12,0.00037086,120]
[426879124,1782976604000,1341.12,0.00037086,120]
[426879123,1782976604000,500.0,0.00037086,120]
[426879122,1782976604000,1341.12,0.00037086,120]
[426879132,1782976605000,500.0,0.00037086,120]
[426879131,1782976605000,500.0,0.00037086,120]
[426879130,1782976605000,1341.12,0.00037086,120]
[426879129,1782976605000,500.0,0.00037086,120]
[426879128,1782976605000,1341.12,0.00037086,120]
[426879127,1782976605000,1341.12,0.00037086,120]
[426879135,1782976606000,500.0,0.00037086,120]
[426879137,1782976606000,1341.12,0.00037086,120]
[426879133,1782976606000,276.14453275,0.00037086,120]
[426879138,1782976606000,500.0,0.00037086,120]
[426879136,1782976606000,304.22390642,0.00037086,120]
[426879140,1782976606000,629.87420057,0.00037086,120]
[426879134,1782976606000,1341.12,0.00037086,120]
[426879139,1782976606000,1341.12,0.00037086,120]
[426879141,1782976607000,1341.12,0.00037086,120]
[426879142,1782976607000,303.48608437,0.00037086,120]
[426879143,1782976607000,1341.12,0.00037086,120]
[426879147,1782976607000,1341.12,0.00037086,120]
[426879146,1782976607000,1341.12,0.00037086,120]
[426879145,1782976607000,563.07102592,0.00037086,120]
[426879144,1782976607000,566.84962269,0.00037086,120]
[426879150,1782976608000,1341.12,0.00037086,120]
[426879149,1782976608000,1341.12,0.00037086,120]
[426879148,1782976608000,1341.12,0.00037086,120]
[426879152,1782976609000,1341.18603947,0.00037086,120]
[426879154,1782976609000,306.17220336,0.00037086,120]
[426879151,1782976609000,500.0,0.00037086,120]
[426879155,1782976609000,296.5927367,0.00037086,120]
[426879153,1782976609000,500.0,0.00037086,120]
[426879156,1782976609000,1366.427,0.00037086,120]
[426879157,1782976610000,612.59328164,0.00037086,120]
[426879158,1782976611000,245.36687886,0.00037086,120]
[426879161,1782976613000,500.0,0.00037086,120]
[426879159,1782976613000,617.4858177,0.00037086,120]
[426879160,1782976613000,232.2486521,0.00037086,120]
[426879162,1782976613000,621.4933707,0.00037086,120]
[426879164,1782976614000,331.20753975,0.00037086,120]
[426879163,1782976614000,500.0,0.00037086,120]
[426879165,1782976614000,209.00758357,0.00037086,120]
[426879166,1782976615000,635.67535633,0.00037086,120]
[426879168,1782976616000,609.48792641,0.00037086,120]
[426879167,1782976616000,266.97383992,0.00037086,120]
[426879169,1782976617000,356.73784521,0.00037086,120]
[426879170,1782976617000,500.0,0.00037086,120]
[426879172,1782976618000,325.47902368,0.00037086,120]
[426879171,1782976618000,230.64701023,0.00037086,120]
[426879174,1782976619000,600.3429,0.00037086,120]
[426879173,1782976619000,500.0,0.00037086,120]
[426879176,1782976620000,404.39364985,0.00037086,120]
[426879175,1782976620000,572.1655951,0.00037086,120]
[426879181,1782976621000,500.0,0.00037086,120]
[426879180,1782976621000,242.07660226,0.00037086,120]
[426879179,1782976621000,500.0,0.00037086,120]
[426879178,1782976621000,500.0,0.00037086,120]
[426879177,1782976621000,500.0,0.00037086,120]
[426879182,1782976622000,500.0,0.00037086,120]
[426879183,1782976622000,500.0,0.00037086,120]
[426879187,1782976622000,500.0,0.00037086,120]
[426879184,1782976622000,500.0,0.00037086,120]
[426879186,1782976622000,500.0,0.00037086,120]
[426879185,1782976622000,500.0,0.00037086,120]
[426879188,1782976623000,500.0,0.00037086,120]
[426879189,1782976623000,549.10418383,0.00037086,120]
[426879190,1782976623000,500.0,0.00037086,120]
[426879191,1782976623000,500.0,0.00037086,120]
[426879195,1782976623000,500.0,0.00037086,120]
[426879193,1782976623000,500.0,0.00037086,120]
[426879194,1782976623000,500.0,0.00037086,120]
[426879196,1782976623000,198.06706526,0.00037086,120]
[426879192,1782976623000,500.0,0.00037086,120]
[426879203,1782976624000,500.0,0.00037086,120]
[426879202,1782976624000,500.0,0.00037086,120]
[426879201,1782976624000,500.0,0.00037086,120]
[426879200,1782976624000,500.0,0.00037086,120]
[426879199,1782976624000,500.0,0.00037086,120]
[426879198,1782976624000,2003.5,0.00037086,120]
[426879197,1782976624000,500.0,0.00037086,120]
[426879204,1782976625000,579.96199861,0.00037086,120]
[426879205,1782976625000,725.32618635,0.00037086,120]
[426879207,1782976625000,500.0,0.00037086,120]
[426879206,1782976625000,500.0,0.00037086,120]
[426879208,1782976625000,242.83486133,0.00037086,120]
[426879216,1782976626000,167.22123623,0.00037086,120]
[426879215,1782976626000,970.61,0.00037086,120]
[426879214,1782976626000,500.0,0.00037086,120]
[426879213,1782976626000,500.0,0.00037086,120]
[426879212,1782976626000,603.40428319,0.00037086,120]
[426879210,1782976626000,500.0,0.00037086,120]
[426879211,1782976626000,500.0,0.00037086,120]
[426879209,1782976626000,500.0,0.00037086,120]
[426879220,1782976627000,500.0,0.00037086,120]
[426879219,1782976627000,500.0,0.00037086,120]
[426879218,1782976627000,500.0,0.00037086,120]
[426879217,1782976627000,500.0,0.00037086,120]
[426879221,1782976628000,500.0,0.00037086,120]
[426879223,1782976628000,545.98257294,0.00037086,120]
[426879222,1782976628000,396.32702563,0.00037086,120]
[426879227,1782976629000,188.06212239,0.00037086,120]
[426879226,1782976629000,504.66041799,0.00037086,120]
[426879225,1782976629000,500.0,0.00037086,120]
[426879224,1782976629000,970.61,0.00037086,120]
[426879231,1782976631000,500.0,0.00037086,120]
[426879230,1782976631000,970.62,0.00037086,120]
[426879229,1782976631000,500.0,0.00037086,120]
[426879228,1782976631000,500.0,0.00037086,120]
[426879236,1782976632000,580.07817781,0.00037086,120]
[426879235,1782976632000,183.62700931,0.00037086,120]
[426879234,1782976632000,500.0,0.00037086,120]
[426879233,1782976632000,500.0,0.00037086,120]
[426879232,1782976632000,625.14458784,0.00037086,120]
[426879237,1782976633000,166.62130437,0.00037086,120]
[426879238,1782976633000,166.62130437,0.00037086,120]
[426879240,1782976633000,500.0,0.00037086,120]
[426879239,1782976633000,185.71408925,0.00037086,120]
[426879243,1782976634000,500.0,0.00037086,120]
[426879242,1782976634000,180.42045126,0.00037086,120]
[426879245,1782976634000,500.0,0.00037086,120]
[426879241,1782976634000,500.0,0.00037086,120]
[426879246,1782976634000,180.42045126,0.00037086,120]
[426879247,1782976634000,179.20104378,0.00037086,120]
[426879248,1782976634000,151.0,0.00037086,120]
[426879244,1782976634000,166.62130437,0.00037086,120]
[426879250,1782976635000,166.62130437,0.00037086,120]
[426879249,1782976635000,612.81233222,0.00037086,120]
[426879252,1782976635000,221.71803888,0.00037086,120]
[426879251,1782976635000,151.0,0.00037086,120]
[426879253,1782976635000,2000.0,0.00037086,120]
[426879254,1782976635000,500.0,0.00037086,120]
[426879255,1782976635000,151.0,0.00037086,120]
[426879256,1782976635000,175.12227319,0.00037086,120]
[426879258,1782976635000,500.0,0.00037086,120]
[426879259,1782976635000,237.09648728,0.00037086,120]
[426879260,1782976635000,500.0,0.00037086,120]
[426879261,1782976635000,500.0,0.00037086,120]
[426879262,1782976635000,189.4401539,0.00037086,120]
[426879263,1782976635000,166.62130441,0.00037086,120]
[426879257,1782976635000,182.84375535,0.00037086,120]
[426879264,1782976636000,238.56163261,0.00037086,120]
[426879265,1782976636000,500.0,0.00037086,120]
[426879266,1782976636000,182.84375535,0.00037086,120]
[426879268,1782976636000,500.0,0.00037086,120]
[426879267,1782976636000,373.95665908,0.00037086,120]
[426879269,1782976636000,151.0,0.00037086,120]
[426879271,1782976636000,175.12227319,0.00037086,120]
[426879270,1782976636000,2074.0,0.00037086,120]
[426879273,1782976636000,195.98713594,0.00037086,120]
[426879280,1782976636000,219.04743701,0.00037086,120]
[426879279,1782976636000,175.12227319,0.00037086,120]
[426879277,1782976636000,182.84375535,0.00037086,120]
[426879272,1782976636000,500.0,0.00037086,120]
[426879276,1782976636000,633.99262393,0.00037086,120]
[426879274,1782976636000,586.40345094,0.00037086,120]
[426879275,1782976636000,168.3888056,0.00037086,120]
[426879278,1782976636000,530.30777315,0.00037086,120]
[426879288,1782976637000,500.0,0.00037086,120]
[426879282,1782976637000,1350.12568393,0.00037086,120]
[426879283,1782976637000,182.84375537,0.00037086,120]
[426879284,1782976637000,195.79497764,0.00037086,120]
[426879285,1782976637000,175.12227319,0.00037086,120]
[426879286,1782976637000,151.0,0.00037086,120]
[426879287,1782976637000,500.0,0.00037086,120]
[426879281,1782976637000,151.0,0.00037086,120]
[426879289,1782976637000,610.01342044,0.00037086,120]
[426879291,1782976637000,151.0,0.00037086,120]
[426879292,1782976637000,175.12227319,0.00037086,120]
[426879293,1782976637000,500.0,0.00037086,120]
[426879294,1782976637000,517.68113584,0.00037086,120]
[426879296,1782976637000,500.0,0.00037086,120]
[426879295,1782976637000,175.12227319,0.00037086,120]
[426879297,1782976637000,151.0,0.00037086,120]
[426879290,1782976637000,500.0,0.00037086,120]
[426879298,1782976638000,500.0,0.00037086,120]
[426879300,1782976638000,175.12227319,0.00037086,120]
[426879299,1782976638000,500.0,0.00037086,120]
[426879301,1782976638000,151.0,0.00037086,120]
[426879302,1782976638000,351.81613046,0.00037086,120]
[426879303,1782976638000,500.0,0.00037086,120]
[426879305,1782976638000,329.80598439,0.00037086,120]
[426879304,1782976638000,175.12227319,0.00037086,120]
[426879307,1782976638000,500.0,0.00037086,120]
[426879308,1782976638000,500.0,0.00037086,120]
[426879309,1782976638000,175.12227319,0.00037086,120]
[426879310,1782976638000,500.0,0.00037086,120]
[426879311,1782976638000,500.0,0.00037086,120]
[426879312,1782976638000,175.12227319,0.00037086,120]
[426879313,1782976638000,500.0,0.00037086,120]
[426879306,1782976638000,208.27442596,0.00037086,120]
[426879314,1782976639000,500.0,0.00037086,120]
[426879315,1782976639000,500.0,0.00037086,120]
[426879317,1782976639000,196.07599454,0.00037086,120]
[426879318,1782976639000,500.0,0.00037086,120]
[426879319,1782976639000,175.12227319,0.00037086,120]
[426879316,1782976639000,175.12227319,0.00037086,120]
[426879320,1782976639000,500.0,0.00037086,120]
[426879322,1782976639000,500.0,0.00037086,120]
[426879323,1782976639000,391.11777612,0.00037086,120]
[426879324,1782976639000,500.0,0.00037086,120]
[426879325,1782976639000,500.0,0.00037086,120]
[426879326,1782976639000,175.12227319,0.00037086,120]
[426879321,1782976639000,175.12227319,0.00037086,120]
[426879327,1782976640000,500.0,0.00037086,120]
[426879328,1782976640000,500.0,0.00037086,120]
[426879329,1782976640000,500.0,0.00037086,120]
[426879330,1782976640000,500.0,0.00037086,120]
[426879332,1782976640000,228.09253469,0.00037086,120]
[426879334,1782976640000,500.0,0.00037086,120]
[426879333,1782976640000,606.73018656,0.00037086,120]
[426879335,1782976640000,500.0,0.00037086,120]
[426879336,1782976640000,175.12227319,0.00037086,120]
[426879337,1782976640000,308.81207497,0.00037086,120]
[426879338,1782976640000,500.0,0.00037086,120]
[426879331,1782976640000,500.0,0.00037086,120]
[426879341,1782976641000,159.38425858,0.00037086,120]
[426879340,1782976641000,380.66784122,0.00037086,120]
[426879342,1782976641000,175.12227319,0.00037086,120]
[426879339,1782976641000,175.12227319,0.00037086,120]
[426879343,1782976641000,150.4471868,0.00037086,120]
[426879345,1782976641000,231.51477313,0.00037086,120]
[426879344,1782976641000,547.05536656,0.00037086,120]
[426879346,1782976641000,175.12227319,0.00037086,120]
[426879347,1782976642000,175.12227319,0.00037086,120]
[426879349,1782976642000,394.14456445,0.00037086,120]
[426879348,1782976642000,175.12227329,0.00037086,120]
[426879351,1782976643000,500.0,0.00037086,120]
[426879350,1782976643000,500.0,0.00037086,120]
[426879352,1782976644000,500.0,0.00037086,120]
[426879354,1782976644000,454.8709464,0.00037086,120]
[426879353,1782976644000,500.0,0.00037086,120]
[426879358,1782976645000,155.11276407,0.00037086,120]
[426879357,1782976645000,500.0,0.00037086,120]
[426879356,1782976645000,555.01081798,0.00037086,120]
[426879355,1782976645000,264.2842797,0.00037086,120]
[426879364,1782976647000,500.0,0.00037086,120]
[426879363,1782976647000,500.0,0.00037086,120]
[426879362,1782976647000,500.0,0.00037086,120]
[426879361,1782976647000,500.0,0.00037086,120]
[426879360,1782976647000,1409.69,0.00037086,120]
[426879359,1782976647000,500.0,0.00037086,120]
[426879365,1782976648000,500.0,0.00037086,120]
[426879366,1782976648000,500.0,0.00037086,120]
[426879367,1782976648000,500.0,0.00037086,120]
[426879369,1782976648000,500.0,0.00037086,120]
[426879370,1782976648000,500.0,0.00037086,120]
[426879368,1782976648000,500.0,0.00037086,120]
[426879376,1782976649000,500.0,0.00037086,120]
[426879375,1782976649000,304.03769996,0.00037086,120]
[426879374,1782976649000,500.0,0.00037086,120]
[426879373,1782976649000,500.0,0.00037086,120]
[426879372,1782976649000,500.0,0.00037086,120]
[426879371,1782976649000,500.0,0.00037086,120]
[426879378,1782976650000,595.86087549,0.00037086,120]